bitfinex-derivatives/quotes_SOLF0:USTF0_20230102
["timestamp","ask_amount","ask_price","bid_price","bid_amount"]
[1672686773141,2.23,11.137,11.132,2.25]
[1672686776080,271.11176334,11.138,11.131,2.29328611]
[1672686779132,2.25,11.136,11.131,0.06328611]
[1672686780603,2.15,11.136,11.131,0.06328611]
[1672686781759,7.24,11.137,11.131,2.31328611]
[1672686781967,2.24,11.137,11.131,2.31328611]
[1672686794051,2.24,11.136,11.131,0.06328611]
[1672686794262,5.0,11.135,11.131,0.06328611]
[1672686797308,2.24,11.136,11.131,0.06328611]
[1672686798990,2.24,11.137,11.131,2.31328611]
[1672686799202,5.0,11.136,11.131,2.31328611]
[1672686799513,7.24,11.137,11.131,2.31328611]
[1672686799725,2.24,11.137,11.131,2.31328611]
[1672686814546,2.24,11.135,11.128,2.25]
[1672686815492,2.24,11.135,11.128,2.31915855]
[1672686815702,0.06347182,11.135,11.129,2.25]
[1672686836303,2.31347182,11.135,11.131,2.25]
[1672686840084,2.31347182,11.135,11.13,2.25]
[1672686860049,2.30347182,11.135,11.13,2.24]
[1672686890107,0.06347182,11.135,11.131,2.24]
[1672686898832,2.31347182,11.135,11.13,2.25]
[1672686902720,0.06347182,11.135,11.132,2.25]
[1672686902930,2.31362698,11.137,11.132,2.25]
[1672686920060,0.06362698,11.137,11.133,2.24]
[1672686922156,2.25,11.138,11.137,0.01846193]
[1672686923317,0.06260744,11.141,11.137,2.26846193]
[1672686923526,2.25,11.142,11.137,2.26846193]
[1672686980160,2.25,11.142,11.137,2.25846193]
[1672686989091,0.06610911,11.143,11.139,2.25]
[1672687000133,0.06610911,11.143,11.14,2.24]
[1672687000336,2.31588109,11.145,11.14,2.24]
[1672687003913,2.09473212,11.145,11.14,2.24]
[1672687020095,2.30588109,11.145,11.141,2.25]
[1672687029248,321.04,11.142,11.137,0.06374006]
[1672687029456,321.05,11.14,11.135,2.25]
[1672687029662,5.0,11.139,11.135,2.25]
[1672687031239,321.05,11.14,11.135,2.25]
[1672687033131,52.25,11.14,11.135,2.25]
[1672687034075,2.25,11.14,11.135,2.25]
[1672687034287,0.06123056,11.141,11.137,2.25]
[1672687034497,0.06123056,11.141,11.138,2.24]
[1672687034703,2.31518014,11.143,11.138,2.24]
[1672687044477,2.25,11.139,11.136,0.07030844]
[1672687044692,5.0,11.138,11.134,2.24]
[1672687044904,5.0,11.138,11.134,2.31043074]
[1672687046376,7.25,11.139,11.134,2.31043074]
[1672687049002,2.25,11.139,11.134,2.31043074]
[1672687050999,52.31859271,11.14,11.134,0.07043074]
[1672687052367,2.31859271,11.14,11.134,0.07043074]
[1672687055100,52.31859271,11.14,11.134,0.07043074]
[1672687055523,2.31859271,11.14,11.134,0.07043074]
[1672687055735,52.31859271,11.14,11.134,0.07043074]
[1672687057523,2.31859271,11.14,11.134,0.07043074]
[1672687057734,0.06859271,11.14,11.137,2.25]
[1672687057943,0.06779815,11.142,11.137,2.25]
[1672687063731,2.0,11.14,11.137,2.25]
[1672687070032,2.0,11.14,11.138,2.25]
[1672687076759,0.06779815,11.142,11.138,2.25]
[1672687079810,2.06779815,11.142,11.138,2.25]
[1672687080122,2.06779815,11.142,11.136,2.25]
[1672687096619,2.06779815,11.142,11.138,2.25]
[1672687096835,4.30779815,11.142,11.138,2.25]
[1672687120591,2.06779815,11.142,11.139,2.24]
[1672687120801,2.0,11.142,11.139,2.24]
[1672687121004,2.25,11.143,11.139,2.24]
[1672687128998,2.25,11.143,11.139,0.24]
[1672687146233,1.75,11.143,11.139,0.24]
[1672687148125,2.25,11.141,11.137,0.06408748]
[1672687169664,2.24,11.141,11.137,2.31408748]
[1672687170089,2.25,11.142,11.137,2.31408748]
[1672687180068,2.25,11.141,11.137,2.31408748]
[1672687190160,2.24,11.142,11.137,2.31408748]
[1672687192260,2.24,11.142,11.137,1.81408748]
[1672687200352,2.14,11.142,11.137,1.81408748]
[1672687205290,0.07002263,11.144,11.136,0.06842371]
[1672687206025,50.0,11.141,11.136,0.06842371]
[1672687206230,5.0,11.14,11.136,0.06842371]
[1672687206441,5.0,11.14,11.123,5.0]
[1672687206647,5.0,11.14,11.124,3.30044986]
[1672687206862,5.0,11.14,11.125,5.0]
[1672687207282,5.0,11.14,11.126,3.30044986]
[1672687207496,0.06121938,11.137,11.129,0.06473473]
[1672687211595,0.06121938,11.137,11.132,49.99995312]
[1672687211802,0.06121938,11.137,11.133,5.0]
[1672687212220,0.06121938,11.137,11.134,3.30044986]
[1672687212434,0.06419587,11.139,11.134,3.30044986]
[1672687212647,0.07066479,11.14,11.133,5.06964057]
[1672687212856,0.06238433,11.14,11.133,5.06964057]
[1672687213064,0.06238433,11.14,11.134,3.29839813]
[1672687241755,0.06238433,11.14,11.133,3.3680387]
[1672687249640,0.06238433,11.14,11.133,0.06964057]
[1672687254158,0.06238433,11.14,11.133,3.3680387]
[1672687255420,0.06238433,11.14,11.133,0.06964057]
[1672687256681,0.06238433,11.14,11.133,3.3680387]
[1672687258571,0.06238433,11.14,11.133,0.06964057]
[1672687258886,0.06238433,11.14,11.133,3.3680387]
[1672687270134,268.8,11.145,11.14,0.0147723]
[1672687282954,268.8,11.145,11.139,0.06849732]
[1672687284002,0.06937332,11.146,11.139,0.06849732]
[1672687396765,0.06937332,11.146,11.139,9.732e-05]
[1672687397919,318.8,11.141,11.139,9.732e-05]
[1672687398132,5.0,11.14,11.133,3.29777068]
[1672687398441,5.06181886,11.14,11.133,0.06091216]
[1672687400019,273.86181886,11.14,11.133,0.06091216]
[1672687402333,324.43371886,11.14,11.133,0.06091216]
[1672687406111,324.43371886,11.14,11.126,3.30007279]
[1672687406321,5.0,11.139,11.126,3.30007279]
[1672687406531,5.0,11.139,11.123,49.99995312]
[1672687406955,5.0,11.139,11.124,3.30007279]
[1672687407373,0.0611638,11.135,11.128,0.06598814]
[1672687407581,0.06350683,11.135,11.128,0.06598814]
[1672687409266,5.0,11.134,11.124,3.26606093]
[1672687410318,5.0,11.134,11.125,0.069883]
[1672687411471,268.8,11.133,11.125,0.069883]
[1672687411683,5.0,11.132,11.125,0.069883]
[1672687411996,5.06294964,11.132,11.122,3.23594393]
[1672687412416,5.06294964,11.132,11.121,3.23594393]
[1672687412628,5.06294964,11.132,11.122,5.0]
[1672687412942,5.06294964,11.132,11.123,50.07103273]
[1672687413361,5.06294964,11.132,11.124,3.23594393]
[1672687418511,5.06294964,11.132,11.123,3.30702354]
[1672687419987,5.06294964,11.132,11.123,0.07107961]
[1672687422194,5.06294964,11.132,11.123,3.30702354]
[1672687427127,0.06294964,11.132,11.124,5.0]
[1672687427764,0.06294964,11.132,11.125,3.23594393]
[1672687430708,0.06294964,11.132,11.124,3.23594393]
[1672687435641,268.56294964,11.133,11.125,5.0]
[1672687436067,268.56294964,11.133,11.123,0.07107961]
[1672687436380,5.0,11.132,11.126,3.23594393]
[1672687436586,5.0,11.132,11.125,0.06848704]
[1672687436906,5.06360963,11.132,11.125,0.06503607]
[1672687441525,0.06360963,11.132,11.125,0.06503607]
[1672687442372,5.0,11.131,11.123,3.20098]
[1672687442895,273.56294964,11.131,11.123,3.20098]
[1672687443104,273.56294964,11.131,11.123,0.0689708]
[1672687444258,5.0,11.128,11.123,0.0689708]
[1672687447625,268.6302634,11.129,11.123,0.0689708]
[1672687447943,5.0,11.128,11.116,3.27159706]
[1672687448995,0.07126857,11.126,11.118,0.06085354]
[1672687450045,0.07126857,11.126,11.118,3.3324506]
[1672687455823,6.857e-05,11.126,11.122,49.99995312]
[1672687456031,268.56294964,11.137,11.123,5.0]
[1672687456246,5.0,11.136,11.123,8.27159706]
[1672687456875,5.0,11.136,11.124,3.27159706]
[1672687457085,0.07124263,11.134,11.126,0.06681392]
[1672687458137,0.07124263,11.134,11.126,3.36775726]
[1672687460866,0.07124263,11.134,11.126,0.06681392]
[1672687502600,268.56294964,11.137,11.134,0.12521543]
[1672687522361,0.06382251,11.139,11.134,0.12521543]
[1672687566825,0.06382251,11.139,11.132,0.06856141]
[1672687624304,269.6,11.147,11.133,54.99995312]
[1672687624508,5.0,11.146,11.134,5.0]
[1672687625452,0.06210808,11.144,11.136,0.06557863]
[1672687777123,0.06210808,11.144,11.134,3.29854593]
[1672687777124,5.0,11.143,11.134,3.29854593]
[1672687777430,269.6,11.141,11.124,50.2606]
[1672687777641,269.6,11.141,11.123,49.99995312]
[1672687777846,5.0,11.14,11.125,3.30034268]
[1672687778270,0.06241044,11.136,11.129,0.06564923]
[1672687778480,0.06739148,11.136,11.129,0.06564923]
[1672687819046,269.6,11.144,11.133,49.99995312]
[1672687819259,269.6,11.144,11.134,5.0]
[1672687820126,0.06028905,11.143,11.135,0.06684337]
[1672687820336,5.06028905,11.143,11.135,0.06684337]
[1672687829819,0.06028905,11.143,11.135,0.06684337]
[1672687865089,0.06028905,11.143,11.135,3.36534409]
[1672687897147,2.29028905,11.143,11.139,2.24]
[1672687900090,0.06028905,11.143,11.139,2.22]
[1672687910072,2.29028905,11.143,11.139,2.23]
[1672687931343,2.12384482,11.143,11.139,2.23]
[1672687949805,2.30876139,11.145,11.14,2.22]
[1672687960106,0.06876139,11.145,11.143,2.24]
[1672687960318,0.06569402,11.148,11.144,7.23]
[1672687960528,2.23,11.149,11.144,7.23]
[1672687963043,2.23,11.149,11.144,2.23]
[1672687971343,0.0621533,11.15,11.148,2.22]
[1672687971557,2.24,11.152,11.148,2.22]
[1672687971980,2.23,11.151,11.147,2.24]
[1672687987756,2.23,11.152,11.147,2.23]
[1672687988491,2.24,11.15,11.145,2.30443285]
[1672687993747,2.24,11.15,11.146,5.0]
[1672687994273,2.24,11.15,11.145,2.30443285]
[1672688010035,2.23,11.151,11.147,2.23]
[1672688013188,2.24,11.149,11.145,2.30443285]
[1672688017920,2.24,11.148,11.144,2.23]
[1672688018131,2.23,11.146,11.142,49.99995312]
[1672688018761,2.23,11.146,11.143,3.29552357]
[1672688019179,2.23,11.146,11.141,2.28842515]
[1672688019599,2.24,11.144,11.141,0.06842515]
[1672688019810,2.24,11.144,11.139,2.30733144]
[1672688037049,2.30103001,11.145,11.141,2.24]
[1672688047449,3.21103001,11.145,11.141,3.13]
[1672688053222,0.07103001,11.145,11.141,3.13]
[1672688060057,3.21103001,11.145,11.141,3.13]
[1672688072773,0.07103001,11.145,11.144,3.14]
[1672688073086,0.06926224,11.148,11.144,3.14]
[1672688073291,3.17380036,11.15,11.145,3.13]
[1672688077395,0.06380036,11.15,11.147,3.14]
[1672688077599,3.12,11.151,11.147,3.14]
[1672688107033,3.20485465,11.152,11.148,3.14]
[1672688116283,3.14,11.151,11.146,3.13]
[1672688140042,3.12,11.151,11.147,3.14]
[1672688153285,0.06485465,11.152,11.149,3.14]
[1672688153493,3.11,11.153,11.149,3.14]
[1672688156018,2.88983261,11.153,11.149,3.14]
[1672688156438,3.12,11.155,11.15,8.13]
[1672688160949,3.12,11.155,11.15,3.13]
[1672688190060,3.12,11.155,11.15,3.14]
[1672688200045,3.11,11.154,11.149,3.20328578]
[1672688210235,3.14,11.154,11.15,3.14]
[1672688244404,0.06773226,11.156,11.153,3.13]
[1672688244614,0.06109551,11.158,11.154,3.14]
[1672688244825,3.11,11.159,11.154,3.14]
[1672688251559,0.0662484,11.16,11.157,3.14]
[1672688251770,3.20940388,11.162,11.157,3.14]
[1672688262809,3.11,11.158,11.155,0.07081751]
[1672688263015,5.0,11.157,11.154,3.14]
[1672688264068,3.11,11.158,11.154,3.14]
[1672688280041,3.11,11.157,11.152,3.20631004]
[1672688280251,5.0,11.156,11.152,3.20631004]
[1672688280778,3.11,11.157,11.152,3.20631004]
[1672688288451,3.11,11.157,11.152,53.20626316]
[1672688288661,3.2068862,11.159,11.154,3.14]
[1672688288871,3.2068862,11.159,11.155,5.0]
[1672688289607,3.2068862,11.159,11.154,8.14]
[1672688289920,3.2068862,11.159,11.154,3.14]
[1672688294756,3.11,11.157,11.152,3.20631004]
[1672688310196,3.14,11.158,11.153,3.14]
[1672688311354,0.0668862,11.159,11.156,3.14]
[1672688311561,3.14,11.16,11.156,3.14]
[1672688325433,3.14,11.16,11.152,50.06626316]
[1672688325645,0.06266542,11.161,11.158,3.14]
[1672688325857,3.14,11.162,11.158,3.14]
[1672688329850,0.06925496,11.163,11.159,3.14]
[1672688331744,0.06925496,11.163,11.161,3.14]
[1672688331947,272.77183057,11.166,11.161,3.14]
[1672688342563,3.17183057,11.166,11.161,3.14]
[1672688390176,3.11,11.165,11.16,3.20025931]
[1672688410038,3.14,11.165,11.161,3.14]
[1672688433367,3.17183057,11.166,11.161,3.13]
[1672688440091,3.17183057,11.166,11.162,3.14]
[1672688470046,3.12,11.165,11.161,3.14]
[1672688500339,3.18183057,11.166,11.161,3.14]
[1672688510112,3.11,11.165,11.161,3.13]
[1672688542242,3.14,11.164,11.16,0.06025931]
[1672688547075,3.12,11.162,11.16,0.06025931]
[1672688547286,3.12,11.162,11.157,3.20851261]
[1672688548651,3.11,11.16,11.157,0.06851261]
[1672688548863,3.11,11.16,11.156,3.14]
[1672688550433,3.12,11.157,11.155,0.06117879]
[1672688550647,8.12,11.156,11.152,0.07077919]
[1672688550966,5.0,11.155,11.152,0.07077919]
[1672688551168,5.0,11.155,11.151,3.13]
[1672688552014,3.11,11.154,11.15,0.06679443]
[1672688552228,3.11,11.153,11.15,0.06679443]
[1672688552535,3.11,11.153,11.148,3.13]
[1672688552536,3.11,11.151,11.148,0.06675446]
[1672688552751,3.11,11.151,11.147,3.14]
[1672688554116,3.14,11.149,11.146,0.06048545]
[1672688554335,8.14,11.148,11.143,3.14]
[1672688560633,5.0,11.148,11.142,3.21124772]
[1672688564312,3.20469447,11.149,11.142,3.21124772]
[1672688573135,266.01110762,11.153,11.151,2.37422665]
[1672688573349,257.04410619,11.153,11.151,2.37422665]
[1672688574086,3.11,11.155,11.151,2.37422665]
[1672688578084,0.06360265,11.156,11.151,2.37422665]
[1672688584166,2.65e-06,11.156,11.153,49.99995312]
[1672688584379,257.04410619,11.161,11.153,49.99995312]
[1672688584380,253.45810951,11.161,11.155,3.12]
[1672688584590,253.45810951,11.161,11.157,3.12]
[1672688585220,3.20109299,11.163,11.157,3.12]
[1672688600041,3.14,11.162,11.156,3.12]
[1672688600251,5.0,11.161,11.156,3.12]
[1672688602248,3.14,11.162,11.156,3.12]
[1672688640178,0.06109299,11.163,11.159,3.14]
[1672688644076,0.06109299,11.163,11.16,3.13]
[1672688644287,3.13,11.164,11.16,3.13]
[1672688659103,3.19260348,11.165,11.159,3.13]
[1672688659313,3.19260348,11.165,11.16,5.0]
[1672688660366,3.19260348,11.165,11.159,3.13]
[1672688674873,0.06260348,11.165,11.161,3.13]
[1672688709234,0.06260348,11.165,11.162,3.12]
[1672688709445,3.13,11.166,11.162,3.12]
[1672688710074,3.17601448,11.167,11.162,3.13]
[1672688714173,269.6,11.18,11.166,3.13]
[1672688714387,3.11,11.179,11.175,3.12]
[1672688715326,3.12,11.18,11.176,3.13]
[1672688716380,3.11,11.186,11.179,3.13]
[1672688716588,3.11,11.186,11.182,3.1]
[1672688719863,52.8431,11.19,11.173,54.99995312]
[1672688719864,269.6,11.182,11.175,3.13]
[1672688720078,3.11,11.179,11.175,3.13]
[1672688720503,269.6,11.18,11.176,3.13]
[1672688720710,3.11,11.183,11.179,3.13]
[1672688722286,3.13,11.182,11.177,3.16721465]
[1672688724915,3.13,11.182,11.177,0.06721465]
[1672688725132,0.06748142,11.185,11.177,0.06721465]
[1672688725133,3.13,11.179,11.177,0.06721465]
[1672688725338,5.0,11.178,11.175,3.1]
[1672688725768,3.13,11.179,11.175,3.1]
[1672688729441,53.13,11.181,11.176,3.13]
[1672688729647,50.0,11.181,11.178,3.1]
[1672688731754,319.6,11.181,11.178,3.1]
[1672688734277,319.6,11.181,11.177,3.12]
[1672688735313,269.6,11.181,11.177,3.12]
[1672688735528,0.07041749,11.182,11.179,3.12]
[1672688735733,269.6,11.183,11.179,3.12]
[1672688736568,0.06935742,11.184,11.179,3.12]
[1672688738135,3.17935742,11.184,11.178,3.12]
[1672688741289,3.12,11.183,11.177,0.06124826]
[1672688743288,3.11,11.18,11.177,0.06124826]
[1672688743496,3.11,11.18,11.173,3.1]
[1672688743497,3.11,11.18,11.175,0.06040751]
[1672688743705,3.11,11.18,11.174,0.06737548]
[1672688748541,3.12,11.178,11.174,0.06737548]
[1672688760207,3.12,11.179,11.174,0.06737548]
[1672688774594,269.6,11.186,11.175,5.0]
[1672688774810,8.11,11.185,11.175,5.0]
[1672688775022,5.0,11.185,11.178,3.12]
[1672688775228,269.6,11.186,11.178,3.12]
[1672688775547,3.11,11.185,11.178,3.12]
[1672688776070,575.0,11.243,11.183,49.99995312]
[1672688776284,50.5318,11.229,11.213,49.99995312]
[1672688776489,114.76703742,11.242,11.203,49.99995312]
[1672688776705,71.72,11.241,11.204,5.0]
[1672688777016,3.11,11.221,11.213,49.99995312]
[1672688777229,3.12,11.219,11.214,5.0]
[1672688777651,3.12,11.218,11.214,5.0]
[1672688777858,19.51529106,11.218,11.214,5.0]
[1672688778173,0.06056815,11.221,11.214,5.0]
[1672688778174,3.11,11.22,11.214,5.0]
[1672688778384,66.73,11.24,11.22,2.10493216]
[1672688778700,5.0,11.229,11.214,5.0]
[1672688778915,3.12,11.221,11.214,5.0]
[1672688779227,3.11,11.217,11.214,5.0]
[1672688779430,3.181045,11.219,11.214,5.0]
[1672688779645,3.18970125,11.22,11.213,53.18216481]
[1672688779856,3.12,11.215,11.192,55.0]
[1672688780066,8.12,11.214,11.194,49.99995312]
[1672688780274,282.08,11.212,11.194,49.99995312]
[1672688780484,3.12,11.204,11.194,49.99995312]
[1672688780797,269.6,11.212,11.206,2.08506659]
[1672688781011,3.12,11.215,11.211,49.99995312]
[1672688781225,5.0,11.229,11.212,5.0]
[1672688781432,3.11,11.219,11.212,5.0]
[1672688781641,3.11,11.219,11.212,55.0]
[1672688781848,5.0,11.226,11.215,5.0]
[1672688782273,3.11,11.223,11.216,3.12]
[1672688782478,5.0,11.222,11.216,3.12]
[1672688782692,119.71332816,11.222,11.216,3.12]
[1672688782902,3.11,11.22,11.215,5.06259811]
[1672688783109,1.03405115,11.22,11.215,5.06259811]
[1672688783329,16.38761831,11.219,11.215,5.06259811]
[1672688783638,16.38761831,11.219,11.215,0.06259811]
[1672688783848,5.0,11.218,11.215,0.06259811]
[1672688784059,15.91299159,11.213,11.205,5.0]
[1672688784269,15.91299159,11.213,11.206,5.19506659]
[1672688784479,3.12,11.211,11.206,2.08506659]
[1672688785108,19.49761831,11.21,11.206,2.08506659]
[1672688785318,8.84532794,11.213,11.207,5.0]
[1672688785950,3.11,11.211,11.206,2.08506659]
[1672688786369,16.39689975,11.21,11.206,2.08506659]
[1672688787001,5.0,11.209,11.206,2.08506659]
[1672688787212,3.12,11.208,11.205,0.07127174]
[1672688787524,3.12,11.208,11.194,5.0]
[1672688787525,8.11,11.207,11.203,0.0678675]
[1672688787735,3.11,11.206,11.201,0.06350583]
[1672688787945,5.0,11.207,11.194,5.0]
[1672688787946,3.11,11.204,11.2,0.0628919]
[1672688788149,0.95508808,11.204,11.198,0.06919369]
[1672688788892,3.12,11.202,11.198,0.06919369]
[1672688789096,3.12,11.201,11.198,0.06919369]
[1672688789417,1.31133749,11.201,11.196,0.06320815]
[1672688789627,1.31133749,11.201,11.195,5.06916949]
[1672688789836,3.18041964,11.202,11.195,8.16916949]
[1672688790256,3.18041964,11.202,11.195,3.16916949]
[1672688790573,3.11,11.2,11.195,0.06916949]
[1672688790782,3.12,11.196,11.194,49.99995312]
[1672688790987,1.17192169,11.196,11.19,3.1]
[1672688791204,9.33,11.202,11.195,5.0]
[1672688791624,269.6,11.206,11.195,5.0]
[1672688791940,0.07023675,11.204,11.197,3.11]
[1672688792256,3.18296369,11.204,11.197,3.17778037]
[1672688793092,0.06296369,11.204,11.202,3.1]
[1672688793306,0.06860589,11.207,11.205,0.06]
[1672688793519,5.0,11.208,11.205,0.06]
[1672688793728,272.72,11.209,11.205,0.06]
[1672688794356,3.12,11.209,11.205,0.06]
[1672688794567,0.07005928,11.21,11.206,3.1]
[1672688794779,0.07005928,11.21,11.207,5.0]
[1672688794989,16.46558601,11.212,11.207,5.0]
[1672688795403,0.06677901,11.212,11.207,8.12]
[1672688796042,3.11,11.217,11.21,3.1]
[1672688796250,5.0,11.219,11.211,3.12]
[1672688796461,8.12,11.219,11.211,3.12]
[1672688796882,3.12,11.219,11.211,3.12]
[1672688797197,3.18515991,11.219,11.211,3.18308759]
[1672688798555,3.12,11.217,11.211,0.06308759]
[1672688799929,6.27,11.218,11.211,0.06308759]
[1672688800139,5.0,11.217,11.211,0.06308759]
[1672688800664,5.0,11.214,11.206,6.23]
[1672688800979,5.0,11.22,11.206,6.23]
[1672688800980,5.0,11.226,11.219,9.73051582]
[1672688801398,56.701,11.23,11.22,5.0]
[1672688801715,16.38615102,11.225,11.216,5.0]
[1672688801924,6.27,11.223,11.217,0.06926856]
[1672688802138,5.0,11.222,11.217,0.06926856]
[1672688803289,11.27,11.222,11.217,0.06926856]
[1672688803500,5.0,11.221,11.215,49.99995312]
[1672688803708,6.25,11.218,11.215,49.99995312]
[1672688803918,6.25,11.218,11.207,5.0]
[1672688804338,5.0,11.217,11.206,6.27]
[1672688804549,0.06641159,11.215,11.208,0.06676844]
[1672688804761,5.0,11.214,11.205,50.05995312]
[1672688805387,6.27,11.208,11.205,50.05995312]
[1672688806129,6.27,11.208,11.205,0.06]
[1672688806340,5.0,11.207,11.205,0.05995312]
[1672688806655,6.27,11.207,11.203,0.06468926]
[1672688806860,6.23,11.211,11.204,5.0]
[1672688807075,5.0,11.21,11.204,5.0]
[1672688807706,5.0,11.21,11.203,0.06468926]
[1672688807910,5.06755124,11.21,11.203,0.06468926]
[1672688809596,0.06755124,11.21,11.203,0.06468926]
[1672688810230,269.6,11.224,11.204,55.0]
[1672688810442,5.0,11.223,11.205,5.0]
[1672688810755,21.38830426,11.223,11.205,23.85]
[1672688810969,16.38830426,11.223,11.213,6.27]
[1672688811173,16.45571642,11.222,11.214,11.33173003]
[1672688811384,16.45475296,11.222,11.215,5.0]
[1672688811700,269.6,11.236,11.22,6.26]
[1672688811910,6.23,11.232,11.221,11.23]
[1672688812115,6.23,11.232,11.222,5.0]
[1672688812437,49.94004688,11.236,11.222,5.0]
[1672688812438,49.94004688,11.236,11.224,6.27]
[1672688812647,0.0693329,11.234,11.226,0.06509454]
[1672688813065,0.0693329,11.234,11.227,6.26]
[1672688813277,6.25,11.238,11.229,6.27]
[1672688813593,1200.47717857,11.288,11.24,3.26116513]
[1672688813805,269.6,11.302,11.241,66.72]
[1672688814016,1025.35314133,11.332,11.301,50.0]
[1672688814220,0.06012195,11.32,11.313,50.0]
[1672688814437,66.05,11.355,11.302,11.32359931]
[1672688814746,6.27,11.337,11.319,6.27]
[1672688814956,1200.47717857,11.417,11.336,100.0]
[1672688815170,811.49165625,11.439,11.392,50.0]
[1672688815377,1656.63116738,11.454,11.369,50.0]
[1672688815378,0.06047017,11.419,11.412,0.07049091]
[1672688815582,65.69,11.418,11.382,50.0]
[1672688815790,778.65712077,11.462,11.382,50.0]
[1672688816003,778.65712077,11.457,11.393,18.84]
[1672688816211,70.47,11.456,11.394,5.0]
[1672688816422,778.65712077,11.453,11.394,5.0]
[1672688816633,1200.47717857,11.477,11.422,50.0]
[1672688816850,325.53251166,11.465,11.453,18.85]
[1672688817053,65.22,11.499,11.451,50.0]
[1672688817275,16.07524165,11.476,11.464,6.31]
[1672688817583,16.07524165,11.476,11.439,65.57]
[1672688817792,5.0,11.498,11.442,0.06250612]
[1672688818001,6.26,11.484,11.395,9.47561678]
[1672688818210,70.31,11.483,11.412,5.0]
[1672688818420,6.25,11.443,11.395,3.99297864]
[1672688818631,25.08,11.415,11.351,50.0]
[1672688818842,0.0656254,11.387,11.379,0.00049878]
[1672688819049,25.08,11.376,11.335,6.24]
[1672688819265,62.7,11.385,11.356,12.63102105]
[1672688819266,65.93,11.375,11.356,12.63102105]
[1672688819469,5.0,11.374,11.315,6.24]
[1672688819688,5.0,11.374,11.225,2504.96301978]
[1672688819689,43.15360529,11.332,11.29,50.0]
[1672688819890,66.19,11.331,11.307,0.06691561]
[1672688820100,25.12,11.316,11.31,50.0]
[1672688820308,47.97774342,11.372,11.322,11.57398837]
[1672688820622,16.17961627,11.371,11.322,11.57398837]
[1672688820836,43.15360529,11.352,11.323,12.75234587]
[1672688821040,6.29,11.336,11.309,50.0]
[1672688821256,0.06909426,11.326,11.321,6.84639471]
[1672688821466,16.17961627,11.351,11.332,6.27]
[1672688821675,66.08,11.35,11.341,6.84639471]
[1672688821888,66.08,11.35,11.325,6.23]
[1672688821889,6.23,11.345,11.335,5.0]
[1672688822096,66.09,11.348,11.335,5.0]
[1672688822307,16.19746419,11.349,11.335,5.0]
[1672688822519,1198.44940968,11.47,11.341,6.84639471]
[1672688822520,0.06031474,11.346,11.341,6.84639471]
[1672688822727,23.82,11.385,11.345,56.84639471]
[1672688822938,48.15360529,11.383,11.351,6.84639471]
[1672688823144,6.25,11.372,11.357,6.27]
[1672688823359,65.96,11.371,11.341,6.84639471]
[1672688823571,6.27,11.358,11.341,6.84639471]
[1672688823782,0.07032924,11.353,11.349,50.0]
[1672688823991,0.07109311,11.355,11.35,5.0]
[1672688824201,0.07066132,11.356,11.35,5.0]
[1672688824514,0.07066132,11.356,11.341,6.84639471]
[1672688824515,0.06872776,11.357,11.344,6.23]
[1672688824725,269.6,11.352,11.331,6.84639471]
[1672688824942,43.15360529,11.353,11.327,5.0]
[1672688825145,18.83,11.345,11.319,5.0]
[1672688825359,274.6,11.343,11.321,6.84639471]
[1672688825570,6.23,11.331,11.328,0.06897557]
[1672688825784,269.6,11.329,11.326,0.06646008]